[Event "Romanian Superleague 2022"]
[Site "Oradea"]
[Date "2022.09.23"]
[Round "3.4"]
[White "Cosma, Ioan"]
[Black "Parligras, Mircea-Emilian"]
[Result "0-1"]
[ECO "E11"]
[WhiteElo "2367"]
[BlackElo "2560"]
[Annotator "TA"]
[PlyCount "72"]
[EventDate "2022.09.21"]
[EventType "team-tourn"]
[EventCountry "ROU"]
[SourceTitle "playchess.com"]
[Source "ChessBase"]
[SourceQuality "1"]
[TimeControl "40/5400+30:1800+30"]

{[%evp 16,72,19,8,33,32,22,18,35,0,14,14,24,-48,-45,-34,-37,-35,-29,-29,-27,-26,-27,-40,-32,-37,-40,-42,-20,-71,-46,-83,-80,-75,-81,-164,-168,-206,-203,-231,-219,-220,-215,-215,-210,-230,-228,-261,-264,-419,-397,-406,-402,-393,-404,-547,-383,-356,-327]} 1. d4 {[%emt 0:00:11]} Nf6 {[%emt 0:00:14]} 2. Nf3 {[%emt 0:00:13]} d5 {[%emt 0:00:43]} 3. c4 {[%emt 0:00:11]} e6 {[%emt 0:00:06]} 4. g3 {[%emt 0:00:15]} Bb4+ {[%emt 0:00:19]} 5. Bd2 {[%emt 0:00:08]} Be7 {[%emt 0:00:26]} 6. Bg2 {[%emt 0:00:19]} O-O {[%emt 0:00:21]} 7. O-O {[%emt 0:00:26]} c6 {[%emt 0:00:25]} 8. Qc2 {[%emt 0:00:14]} Nbd7 {[%emt 0:04:30] seems to push 8...b6 aside.} 9. Rd1 {[%emt 0:00:42]} a5 {[%emt 0:02:46] E11: Bogo-Indian.} 10. Bf4 {[%emt 0:03:44]} h6 {[%emt 0:01:52]} 11. Nbd2 {[%emt 0:14:58]} Nh5 {[%emt 0:06:32] The position is equal.} 12. Be3 {[%emt 0:01:01]} Bd6 {[%emt 0:00:46]} 13. Nb3 {[%emt 0:15:23]} Qe7 {[%emt 0:03:15] [#]} 14. cxd5 $146 {[%emt 0:10:02]} (14. Bd2 $11) ({Predecessor:} 14. a4 b6 15. Ne5 Bb7 16. Nxd7 Qxd7 17. c5 Be7 18. cxb6 Qd8 19. Nc5 Ba6 20. b4 Qxb6 {½-½ (86) Saduakassova,D (2483)-Keymer,V (2602) chess24.com INT 2021}) 14... exd5 $15 {[%emt 0:01:11]} 15. Nh4 {[%emt 0:01:49]} Nb6 {[%emt 0:04:09]} 16. Nf5 {[%emt 0:01:42]} Bxf5 {[%emt 0:00:57]} 17. Qxf5 {[%emt 0:00:06]} Nf6 {[%emt 0:00:12]} 18. Nd2 {[%emt 0:02:03]} a4 {[%emt 0:05:27]} 19. Bf3 {[%emt 0:08:15]} Rfe8 {[%emt 0:02:09]} 20. Bf4 {[%emt 0:01:45]} Bxf4 {[%emt 0:02:35]} 21. Qxf4 {[%emt 0:00:32]} Ne4 {[%emt 0:06:59]} 22. a3 {[%emt 0:05:24]} (22. e3 $11 {remains equal.}) 22... Ra5 {[%emt 0:12:27]} (22... Ng5 $5 {[%cal Rg5h3]} 23. Kg2 Ne6 $15) 23. Rac1 {[%emt 0:03:43]} Rb5 {[%emt 0:02:35]} 24. Rc2 {[%emt 0:01:43]} Ng5 {[%emt 0:09:36] [#] aiming for ...Nh3+. Black is more active.} 25. Qg4 {[%emt 0:05:19] Inhibits Nh3+.} (25. Qf5 $17 {was necessary.}) 25... Nxf3+ $19 {[%emt 0:02:14]} 26. Nxf3 {[%emt 0:00:55]} Nc4 {[%emt 0:00:50] Prevents Ne5.} 27. Rd3 {[%emt 0:08:42]} Rxb2 {[%emt 0:06:14]} 28. Rxb2 {[%emt 0:00:19]} Nxb2 {[%emt 0:00:05]} 29. Re3 {[%emt 0:00:35]} Qd8 {[%emt 0:02:31] [#] And now ...Rxe3 would win.} 30. Ne5 {[%emt 0:01:09]} Nc4 {[%emt 0:00:30]} 31. Nxc4 {[%emt 0:02:48]} dxc4 {[%emt 0:00:12] KQR-KQR} 32. Rc3 {[%emt 0:03:00]} (32. Qf3 $142) 32... b5 {[%emt 0:00:49]} 33. e3 {[%emt 0:00:23]} Qd5 {[%emt 0:01:37]} 34. h4 {[%emt 0:00:27]} h5 {[%emt 0:00:45]} 35. Qf4 {[%emt 0:00:54]} c5 {[%emt 0:01:29]} 36. dxc5 {[%emt 0:00:39]} Qxc5 {[%emt 0:00:10] Weighted Error Value: White=0.32/Black=0.11 (very precise)} 0-1

[Event "Romanian Superleague 2022"]
[Site "Oradea"]
[Date "2022.09.23"]
[Round "3.5"]
[White "Gavrilescu, David"]
[Black "Itkis, Boris"]
[Result "1/2-1/2"]
[ECO "B07"]
[WhiteElo "2523"]
[BlackElo "2332"]
[Annotator "TA"]
[PlyCount "93"]
[EventDate "2022.09.21"]
[EventType "team-tourn"]
[EventCountry "ROU"]
[SourceTitle "playchess.com"]
[Source "ChessBase"]
[SourceQuality "1"]
[TimeControl "40/5400+30:1800+30"]

{[%evp 14,93,37,3,14,0,0,-12,6,0,0,0,0,-26,-27,-20,23,-13,-7,-15,-17,-7,0,-2,0,0,0,0,70,-41,-31,-68,-71,-63,-59,-73,-30,-25,-22,-29,-13,-24,0,0,0,-12,0,0,0,-47,-12,-16,-9,-16,0,0,0,0,0,0,0,0,0,0,0,0,0,0,0,0,0,0,0,0,0,0,0,0,0,0,0,0]} 1. e4 {[%emt 0:00:22]} d6 {[%emt 0:00:06]} 2. d4 {[%emt 0:00:39]} Nf6 {[%emt 0:00:07]} 3. Bd3 {[%emt 0:00:38]} g6 {[%emt 0:01:10]} 4. Nf3 {[%emt 0:00:10]} Bg7 {[%emt 0:00:06]} 5. O-O {[%emt 0:00:18]} O-O {[%emt 0:00:05]} 6. Re1 {[%emt 0:00:29]} Nbd7 {[%emt 0:05:13]} 7. c3 {[%emt 0:06:05]} e5 {[%emt 0:00:06]} 8. Na3 {[%emt 0:00:06] 8.h3 is the modern continuation.} Re8 {[%emt 0:06:10] B07: Pirc Defence: Miscellaneous Systems.} 9. h3 {[%emt 0:01:20]} a6 {[%emt 0:07:13]} 10. Nc2 {[%emt 0:03:06] [#]} d5 $146 {[%emt 0:12:48]} ({Predecessor:} 10... b6 11. b4 exd4 12. cxd4 Bb7 13. Nd2 c5 14. Bb2 Nh5 15. Nc4 Qc7 16. bxc5 dxc5 {1-0 (65) Vinter Schou,U (2347)-Ramsdal,J (2256) Aarhus 2019}) 11. Bg5 {[%emt 0:09:01]} dxe4 {[%emt 0:01:21]} 12. Rxe4 {[%emt 0:02:08][%cal Rd4e5]} exd4 {[%emt 0:01:10]} 13. Rxd4 {[%emt 0:04:09]} h6 {[%emt 0:05:53]} 14. Bh4 {[%emt 0:09:37]} Qe7 {[%emt 0:01:51]} (14... c5 $5 {[%cal Rc5d4]} 15. Rd6 Qe7 $11) 15. Bc4 {[%emt 0:10:38]} Nb6 {[%emt 0:06:55] [#] And now ...c5 would win.} (15... Nc5 $5 {[%cal Rg6g5]}) 16. Bb3 {[%emt 0:08:27]} Be6 {[%emt 0:00:16]} 17. Ne3 {[%emt 0:04:10]} Bxb3 {[%emt 0:01:54]} 18. Qxb3 {[%emt 0:05:43]} Qc5 {[%emt 0:05:54]} 19. Bxf6 {[%emt 0:10:56]} Bxf6 {[%emt 0:00:05]} 20. Rf4 {[%emt 0:00:18]} Re6 {[%emt 0:08:24] [#]} ({Better is} 20... Qd6 $11 21. g3 Qe6) 21. Ng4 {[%emt 0:08:36]} (21. Qxe6 $1 $14 fxe6 22. Rxf6) 21... Bg7 $1 $15 {[%emt 0:00:10]} 22. Nd4 {[%emt 0:00:08][%cal Bf3d4,Bd4b3,Bb3c5,Bc5d3][%mdl 32]} Re7 {[%emt 0:02:36]} 23. Nf6+ {[%emt 0:00:33]} Kh8 $1 {[%emt 0:02:03] ...Qg5 is the strong threat.} 24. Ng4 {[%emt 0:04:19]} Qd5 {[%emt 0:05:50]} 25. Ne3 {[%emt 0:01:09]} Qxb3 {[%emt 0:00:23]} 26. Nxb3 {[%emt 0:00:04]} a5 {[%emt 0:07:58]} 27. Nc5 {[%emt 0:02:27]} Re5 {[%emt 0:03:07]} 28. Nd3 {[%emt 0:00:10]} Re7 {[%emt 0:00:01]} 29. Nc5 {[%emt 0:00:26]} Re5 {[%emt 0:01:09]} 30. Nd3 {[%emt 0:00:04]} Re7 {[%emt 0:00:10]} 31. a4 {[%emt 0:01:52]} (31. Nc5 $11) 31... Rd8 {[%emt 0:00:15]} 32. Nc5 {[%emt 0:00:06] The position is equal.} c6 {[%emt 0:00:18]} 33. Nb3 {[%emt 0:00:34]} Nd5 {[%emt 0:02:29]} 34. Rd1 {[%emt 0:00:15]} Be5 {[%emt 0:05:32]} 35. Rf3 {[%emt 0:00:28] aiming for c4.} Bc7 {[%emt 0:00:28]} 36. Nc4 {[%emt 0:02:31]} Nb6 {[%emt 0:02:26][%cal Rd8d1]} 37. Rxd8+ {[%emt 0:02:28]} Bxd8 {[%emt 0:00:06]} 38. Nxb6 {[%emt 0:01:07]} Bxb6 $11 {[%emt 0:00:06][%mdl 4096] Endgame KRB-KRN} 39. Kf1 {[%emt 0:00:06] Inhibits Re1+.} Rd7 {[%emt 0:00:23]} 40. Ke2 {[%emt 0:00:00]} Kg7 {[%emt 0:00:00]} 41. Nd2 {[%emt 0:09:23]} f5 {[%emt 0:04:55]} 42. Nc4 {[%emt 0:02:21]} Bc7 {[%emt 0:00:06]} 43. Rd3 {[%emt 0:01:58]} Re7+ {[%emt 0:01:08]} 44. Kd2 {[%emt 0:03:34]} Kf6 {[%emt 0:00:24]} 45. Nd6 {[%emt 0:02:29]} Ke6 {[%emt 0:00:20]} 46. Nc4 {[%emt 0:00:41]} Rd7 {[%emt 0:01:10]} 47. Rxd7 {[%emt 0:00:10] Weighted Error Value: White=0.09 (flawless) /Black=0.08 (flawless)} 1/2-1/2

[Event "Romanian Superleague 2022"]
[Site "Oradea"]
[Date "2022.09.23"]
[Round "3.6"]
[White "Bulau, Andrei-Cristian"]
[Black "Toma, Radu-Cristian"]
[Result "0-1"]
[ECO "E48"]
[WhiteElo "2183"]
[BlackElo "2410"]
[Annotator "TA"]
[PlyCount "106"]
[EventDate "2022.09.21"]
[EventType "team-tourn"]
[EventCountry "ROU"]
[SourceTitle "playchess.com"]
[Source "ChessBase"]
[SourceQuality "1"]
[TimeControl "40/5400+30:1800+30"]

{[%evp 20,106,0,0,0,4,1,8,2,-26,23,27,20,11,15,15,12,10,7,12,10,-3,-2,-5,-1,-1,-7,-29,-11,-205,-186,-186,-198,-174,-178,-175,-176,-177,-108,-120,-108,-94,-58,-216,-214,-193,-164,-141,-132,-190,-93,-175,-164,-169,0,-164,-134,-134,-122,-254,-254,-308,-311,-317,-306,-272,0,-241,-206,-728,-254,-254,0,-713,-256,-714,-710,-712,-689,-686,-681,-827,-816,-790,-770,-5265,-5165,-2184,-2146]} 1. d4 {[%emt 0:00:03]} Nf6 {[%emt 0:00:04]} 2. c4 {[%emt 0:00:07]} e6 {[%emt 0:00:05]} 3. Nc3 {[%emt 0:00:06]} Bb4 {[%emt 0:00:06]} 4. e3 {[%emt 0:00:06]} c5 {[%emt 0:02:24]} 5. Bd3 {[%emt 0:00:34]} O-O {[%emt 0:02:50]} 6. Nge2 {[%emt 0:00:19]} cxd4 {[%emt 0:01:12]} 7. exd4 {[%emt 0:00:10]} d5 {[%emt 0:00:06]} 8. O-O {[%emt 0:01:07]} Be7 {[%emt 0:04:46]} 9. Bg5 {[%emt 0:04:32]} Nc6 {[%emt 0:01:30]} 10. Rc1 {[%emt 0:06:03]} dxc4 {[%emt 0:05:36]} 11. Bxc4 {[%emt 0:01:19]} Nd5 {[%emt 0:00:30] E48: Nimzo-Indian: Rubinstein: 5 Bd3 d5 including 6 Ne2, but excluding 6 a3.} 12. Bxe7 {[%emt 0:01:12]} Ncxe7 {[%emt 0:00:08]} 13. Nxd5 {[%emt 0:02:40]} Nxd5 {[%emt 0:03:46] [#] The position is equal.} 14. Qd2 $146 {[%emt 0:04:30]} ({Predecessor:} 14. Nc3 Nf6 15. Re1 Qb6 16. d5 exd5 17. Nxd5 Nxd5 18. Bxd5 Qxb2 19. Rc7 Be6 20. Rxb7 {½-½ (29) Dubov,D (2501)-Beradze,I (2294) Kocaeli 2011}) 14... Bd7 {[%emt 0:12:17]} (14... b6 $142) 15. Bxd5 $11 {[%emt 0:06:28]} exd5 {[%emt 0:01:17]} 16. Rc5 {[%emt 0:01:59]} Bc6 {[%emt 0:03:02]} 17. Nf4 {[%emt 0:02:21]} Qg5 {[%emt 0:02:38]} 18. Qc1 {[%emt 0:02:00][%cal Of4d5]} Qf5 {[%emt 0:12:26]} 19. g3 {[%emt 0:06:40]} Rad8 {[%emt 0:03:15]} 20. Qb1 {[%emt 0:01:57]} Qf6 {[%emt 0:03:27]} 21. Qd3 {[%emt 0:04:50]} Rfe8 {[%emt 0:02:01]} 22. h4 {[%emt 0:12:26]} h6 {[%emt 0:03:05]} 23. Rd1 {[%emt 0:09:21]} Re4 {[%emt 0:05:47]} 24. Nxd5 $2 {[%emt 0:09:22]} Qe6 $19 {[%emt 0:01:58]} ({Worse is} 24... Rxd5 25. Rxc6 Qxd4 26. Qxd4 (26. Rc8+ Kh7 $11) 26... Rexd4 27. Rxd4 Rxd4 28. Rc7 $11) 25. Ne3 {[%emt 0:00:09]} Rexd4 {[%emt 0:01:03]} 26. Qxd4 {[%emt 0:00:05]} Rxd4 {[%emt 0:00:04]} 27. Rxd4 {[%emt 0:00:04]} Qxa2 {[%emt 0:00:11]} 28. Rc2 {[%emt 0:01:20]} Qe6 {[%emt 0:04:55]} ({Better is} 28... Bf3 $19 {And now ...Qb1+ would win.} 29. Rcd2 a5) 29. Kh2 {[%emt 0:01:24]} a5 {[%emt 0:02:15]} 30. Rcd2 {[%emt 0:01:02]} a4 {[%emt 0:00:36]} 31. Rf4 $2 {[%emt 0:05:22] [#]} (31. Nd5 $1 $15) 31... Kh7 $1 {[%emt 0:05:15]} 32. Rfd4 {[%emt 0:01:19]} Qe5 {[%emt 0:01:38]} 33. Rf4 {[%emt 0:01:32]} f6 {[%emt 0:00:33]} 34. Rfd4 {[%emt 0:00:45]} (34. Rc4 $17) 34... Qh5 {[%emt 0:05:10]} (34... b5 $19 {has better winning chances. ...f5 is the strong threat.} 35. Rf4 Qe6) 35. Rf4 {[%emt 0:02:18] Against f5} (35. Nd5 $17 {is a better defense.}) 35... Qc5 {[%emt 0:00:53] Threatens to win with ...Qc1.} 36. Rc4 {[%emt 0:01:15] Prevents Qc1.} Qh5 {[%emt 0:00:33]} 37. Rf4 $1 {[%emt 0:00:08] Against Qf3} Qf7 {[%emt 0:01:29]} 38. Rc4 {[%emt 0:03:15]} Qg6 {[%emt 0:00:42] aiming for ...Qb1.} 39. Rd1 {[%emt 0:01:35] [#] Prevents Qb1.} (39. Nd5 $17) 39... Qh5 $1 {[%emt 0:00:58]} 40. Rc2 {[%emt 0:00:00]} Qf3 {[%emt 0:00:00]} 41. Rcd2 {[%emt 0:04:25]} b5 {[%emt 0:26:07]} 42. Rg1 {[%emt 0:06:01]} Bd7 $2 {[%emt 0:06:47]} 43. Nc2 $2 {[%emt 0:06:41]} (43. Rxd7 $11 Qxf2+ 44. Ng2 Qxb2 45. Re1) 43... Qg4 {[%emt 0:00:39][%csl Gd7][%cal Rg4h3]} 44. Kg2 {[%emt 0:02:54]} (44. Rh1) 44... Bc6+ $2 {[%emt 0:00:20]} (44... Qh3+ 45. Kf3 Bc6+ 46. Ke2 Qg4+ 47. f3 Qxf3+ 48. Ke1 b4) 45. Kh2 {[%emt 0:00:30]} Bd7 $2 {[%emt 0:00:02]} (45... Bb7 46. Re1 b4) 46. Kg2 $1 {[%emt 0:00:02]} Qh3+ {[%emt 0:00:38]} 47. Kf3 {[%emt 0:00:07]} Bc6+ {[%emt 0:01:51] Black is clearly winning.} 48. Ke2 {[%emt 0:00:20]} Qg4+ {[%emt 0:00:17]} 49. Ke1 {[%emt 0:00:34]} Bf3 {[%emt 0:01:06]} 50. Rd4 {[%emt 0:09:40] Prevents Qe4+.} Qf5 {[%emt 0:00:29]} 51. Kd2 {[%emt 0:01:34]} Be4 {[%emt 0:00:09]} 52. Rc1 {[%emt 0:00:05]} Qxf2+ {[%emt 0:00:12]} 53. Kc3 {[%emt 0:00:01]} Qxg3+ {[%emt 0:00:16] Weighted Error Value: White=0.54/Black=0.38} 0-1

[Event "Romanian Superleague 2022"]
[Site "Oradea"]
[Date "2022.09.23"]
[Round "3.7"]
[White "Efimenko, Zahar"]
[Black "Dobre, Claudiu-Cristian"]
[Result "1/2-1/2"]
[ECO "A07"]
[WhiteElo "2599"]
[BlackElo "2268"]
[Annotator "TA"]
[PlyCount "115"]
[EventDate "2022.09.21"]
[EventType "team-tourn"]
[EventCountry "ROU"]
[SourceTitle "playchess.com"]
[Source "ChessBase"]
[SourceQuality "1"]
[TimeControl "40/5400+30:1800+30"]

{[%evp 11,115,8,36,20,28,19,31,11,16,14,35,33,41,28,45,40,45,38,41,38,45,40,82,89,100,93,93,92,100,100,94,99,104,99,112,96,108,104,127,122,129,129,127,105,112,114,122,90,90,93,94,93,92,91,97,92,112,129,298,127,161,83,305,298,291,291,290,80,83,39,39,39,39,39,39,39,39,39,39,39,39,39,39,39,39,39,39,0,39,39,39,0,0,0,0,0,0,0,0,0,0,0,0,0,0,0]} 1. Nf3 {[%emt 0:00:37]} d5 {[%emt 0:00:05]} 2. g3 {[%emt 0:00:07]} c6 {[%emt 0:00:05]} 3. Bg2 {[%emt 0:00:24]} Bg4 {[%emt 0:00:06]} 4. O-O {[%emt 0:01:16]} Nd7 {[%emt 0:00:05]} 5. d4 {[%emt 0:04:05]} e6 {[%emt 0:02:58]} 6. c4 {[%emt 0:03:49]} Bd6 {[%emt 0:09:17]} 7. h3 {[%emt 0:04:35] A07: Réti Opening: New York and Capablanca Systems.} Bh5 {[%emt 0:04:33]} 8. Qb3 {[%emt 0:01:23]} Rb8 {[%emt 0:27:34]} 9. Nc3 {[%emt 0:00:53][%cal Rc4d5] White is slightly better.} Ngf6 {[%emt 0:02:42]} 10. Nd2 {[%emt 0:01:04][%cal Rc4d5]} Bg6 {[%emt 0:06:32]} 11. e4 {[%emt 0:06:09]} dxe4 {[%emt 0:01:44]} 12. Ndxe4 {[%emt 0:00:29]} Nxe4 {[%emt 0:00:24]} 13. Nxe4 {[%emt 0:00:05]} Bxe4 {[%emt 0:02:02]} 14. Bxe4 {[%emt 0:00:05]} O-O {[%emt 0:00:42]} 15. Be3 {[%emt 0:01:02] [#]} f5 $146 {[%emt 0:14:07]} ({Predecessor:} 15... Qa5 16. c5 Nf6 17. Bc2 Bc7 18. Bg5 Nd5 19. Qd3 g6 20. a3 Bd8 21. Bh6 Re8 {1-0 (46) Donchenko,A (2641)-Perez Ponsa,F (2554) Chess.com INT 2021}) 16. c5 {[%emt 0:10:29]} fxe4 {[%emt 0:00:56]} 17. Qxe6+ {[%emt 0:03:17]} ({Reject} 17. cxd6 Qf6 $11) 17... Rf7 {[%emt 0:00:05]} 18. cxd6 {[%emt 0:00:51]} Nf6 {[%emt 0:00:29] Against d5} 19. Bf4 {[%emt 0:03:50] White has more active pieces. The black rooks are badly placed.} Qd7 {[%emt 0:00:42]} 20. Qxd7 {[%emt 0:03:11]} Rxd7 {[%emt 0:00:04]} 21. Rfe1 {[%emt 0:07:43]} Rbd8 {[%emt 0:00:47]} 22. Rad1 {[%emt 0:02:37]} h6 {[%emt 0:02:10]} 23. Kg2 {[%emt 0:05:44]} Kf7 {[%emt 0:10:01]} 24. g4 {[%emt 0:02:59]} Ne8 {[%emt 0:03:15]} 25. d5 {[%emt 0:01:06]} ({Don't take} 25. Rxe4 Nxd6 26. Bxd6 Rxd6 $14) 25... c5 {[%emt 0:00:04]} 26. Rxe4 {[%emt 0:05:39]} Nxd6 {[%emt 0:00:11]} 27. Ra4 {[%emt 0:04:01]} Nb5 {[%emt 0:07:40]} 28. Ra5 {[%emt 0:06:06]} a6 {[%emt 0:00:08]} 29. a4 $36 {[%emt 0:02:38][%mdl 2048] Black is under strong pressure.} Nc7 {[%emt 0:00:05]} 30. Rxc5 {[%emt 0:01:29]} (30. Kg3 {is more complex.} Nxd5 31. Rxc5 Nxf4 32. Rxd7+ Rxd7 33. Rf5+) 30... Nxd5 {[%emt 0:00:23]} 31. Kf3 {[%emt 0:02:40]} Nxf4 {[%emt 0:03:40]} 32. Rxd7+ {[%emt 0:00:10]} Rxd7 {[%emt 0:00:03]} 33. Kxf4 $16 {[%emt 0:01:07][%mdl 4096] Endgame KR-KR} Rd4+ {[%emt 0:00:30]} 34. Kf5 $1 {[%emt 0:00:29] And now Rc7+ would win.} Rb4 $2 {[%emt 0:02:34] [#]} (34... Kg8 $16 {might work better.}) 35. Rc7+ {[%emt 0:00:36]} (35. f4 $1 $18) 35... Kg8 {[%emt 0:00:33]} 36. f4 {[%emt 0:05:16]} (36. Kg6 $18 {[%cal Rc7c8]} Rb6+ 37. Kh5) 36... Rxb2 $2 {[%emt 0:00:34]} (36... Kh7 $16) 37. h4 $18 {[%emt 0:01:25][%cal Bh3h4,Bh4h5,Bh5g6][%mdl 32] Hoping for g5.} a5 {[%emt 0:00:33]} 38. g5 {[%emt 0:00:49]} Rb6 {[%emt 0:00:23] [#]} 39. Rc8+ $2 {[%emt 0:03:49]} (39. Ke5 $1 $18 {and the rest is easy.}) 39... Kh7 $16 {[%emt 0:00:21]} 40. h5 {[%emt 0:00:00] Threatening mate with g6+.} hxg5 {[%emt 0:00:00]} 41. fxg5 {[%emt 0:04:20]} g6+ {[%emt 0:04:20]} 42. hxg6+ {[%emt 0:00:24]} Kg7 $1 {[%emt 0:00:03]} 43. Rc7+ {[%emt 0:00:23]} Kg8 {[%emt 0:02:40]} 44. Rc5 {[%emt 0:01:59]} Rb4 {[%emt 0:08:03]} 45. Rxa5 {[%emt 0:07:33]} Kg7 {[%emt 0:00:12]} 46. Ra8 {[%emt 0:01:50]} Rc4 {[%emt 0:14:46]} 47. Ra7 {[%emt 0:00:25]} Rb4 {[%emt 0:00:15]} 48. Ra5 {[%emt 0:00:05]} Rc4 {[%emt 0:01:27]} 49. Ke5 {[%emt 0:01:34]} b6 {[%emt 0:00:27]} ({Resist} 49... Kxg6 50. Kd5 Rf4 51. Kc5 $16) 50. Ra6 {[%emt 0:03:10]} b5 $1 {[%emt 0:03:31]} 51. a5 {[%emt 0:02:30] Strongly threatening Rb6.} (51. Kf5 $5 {[%cal Ra6a7]} Rc5+ 52. Kg4 Rc4+ 53. Kh5 bxa4 54. Ra8 $11) 51... b4 $1 {[%emt 0:00:07] The position is equal.} 52. Kd5 {[%emt 0:08:49]} Rc1 {[%emt 0:00:23]} 53. Rb6 {[%emt 0:04:51] White threatens a6 and mate.} Ra1 {[%emt 0:00:22]} 54. Rb7+ {[%emt 0:01:27]} Kxg6 {[%emt 0:00:27]} 55. Rb6+ {[%emt 0:00:05]} Kg7 {[%emt 0:00:30]} 56. a6 {[%emt 0:01:09] White wants to mate with Kc6.} b3 $1 {[%emt 0:00:28]} 57. Rxb3 {[%emt 0:00:50]} Rxa6 {[%emt 0:00:09]} 58. Ke4 {[%emt 0:04:02] Black escapes into a draw.  Weighted Error Value: White=0.16 (very precise) /Black=0.15 (very precise)} 1/2-1/2

[Event "Romanian Superleague 2022"]
[Site "Oradea"]
[Date "2022.09.23"]
[Round "3.8"]
[White "Padurariu, Mihai-Edward"]
[Black "Baklan, Vladimir"]
[Result "1/2-1/2"]
[ECO "D02"]
[WhiteElo "2263"]
[BlackElo "2578"]
[Annotator "TA"]
[PlyCount "54"]
[EventDate "2022.09.21"]
[EventType "team-tourn"]
[EventCountry "ROU"]
[SourceTitle "playchess.com"]
[Source "ChessBase"]
[SourceQuality "1"]
[TimeControl "40/5400+30:1800+30"]

{[%evp 10,54,19,18,26,21,20,4,3,0,16,-14,-14,-16,-13,-17,8,10,10,10,7,14,16,0,30,16,25,0,0,0,0,0,0,0,0,0,0,0,0,0,0,0,0,0,0,0,12]} 1. d4 {[%emt 0:00:08]} Nf6 {[%emt 0:00:08]} 2. Nf3 {[%emt 0:00:11]} g6 {[%emt 0:02:00]} 3. Nbd2 {[%emt 0:00:26]} d5 {[%emt 0:01:39]} 4. e3 {[%emt 0:00:13]} Bg7 {[%emt 0:01:06]} 5. b4 {[%emt 0:00:25]} O-O {[%emt 0:06:50]} 6. c4 {[%emt 0:01:36][%cal Bc2c4,Bc4d5][%mdl 32]} c6 {[%emt 0:09:30] D02: 1 d4 d5 2 Nf3 sidelines, including 2...Nf6 3 g3 and 2...Nf6 3 Bf4.} 7. a4 {[%emt 0:07:40]} Ne4 {[%emt 0:06:33] [#]} 8. Bd3 $146 {[%emt 0:08:21]} ({Predecessor:} 8. Bb2 Bg4 9. Be2 Nxd2 10. Nxd2 Bxe2 11. Qxe2 e6 12. O-O Nd7 13. Rab1 Nb6 14. cxd5 cxd5 {½-½ (30) Nabaty,T (2670)-Gopal,G (2582) Stockholm 2018}) 8... Bf5 {[%emt 0:04:58][%cal Oe4f2]} 9. Qc2 {[%emt 0:12:28][%cal Rd2e4]} a5 {[%emt 0:01:03] [#] aiming for ...Na6.} 10. cxd5 {[%emt 0:05:20]} (10. b5 {with more complications.} Nxd2 11. Nxd2 Bxd3 12. Qxd3 Nd7 13. O-O) 10... Nxd2 {[%emt 0:12:56]} 11. Bxd2 {[%emt 0:01:31][%cal Bc1d2,Bd2b4,Bb4a3][%mdl 32]} Bxd3 {[%emt 0:00:51]} 12. Qxd3 {[%emt 0:00:07]} axb4 {[%emt 0:01:12]} 13. Bxb4 {[%emt 0:05:21]} Na6 {[%emt 0:03:35]} 14. Ba3 {[%emt 0:02:09]} Qxd5 {[%emt 0:00:53]} 15. O-O {[%emt 0:01:54]} Rfe8 {[%emt 0:04:03]} 16. Rab1 {[%emt 0:11:50]} Qd7 {[%emt 0:02:21]} 17. Qb3 {[%emt 0:05:34]} Reb8 {[%emt 0:01:11]} 18. Ne5 {[%emt 0:02:55]} Bxe5 {[%emt 0:05:22] The position is equal.} 19. dxe5 {[%emt 0:00:06]} Nc7 {[%emt 0:00:04]} 20. Rfd1 {[%emt 0:01:09]} Qe8 {[%emt 0:00:32]} 21. Bc5 {[%emt 0:09:31]} b5 {[%emt 0:04:32]} 22. axb5 {[%emt 0:00:33]} Ne6 {[%emt 0:00:30][%cal Rb8b5]} 23. Qc2 {[%emt 0:05:59]} Nxc5 {[%emt 0:02:16]} 24. Qxc5 {[%emt 0:00:04]} Rxb5 {[%emt 0:00:07]} 25. Rxb5 {[%emt 0:01:33]} cxb5 {[%emt 0:00:05]} 26. e6 {[%emt 0:03:46]} fxe6 {[%emt 0:02:57][%cal Oe8d7]} 27. h4 {[%emt 0:02:41]} Rd8 {[%emt 0:06:54] An interesting draw.  Weighted Error Value: White=0.07 (flawless) /Black=0.04 (flawless)} 1/2-1/2